bitfinex/quotes_ETHUSD_20250620
["timestamp","ask_amount","ask_price","bid_price","bid_amount"]
[1750458663176,20.91184898,2405.6,2405.5,4.15713988]
[1750458663998,10.058,2405.5,2405.4,4.1572123]
[1750458664299,0.4373338,2405.5,2405.4,4.1572123]
[1750458665259,0.3793338,2405.5,2405.4,4.1572123]
[1750458665464,8.617,2405.6,2405.4,4.1572123]
[1750458665665,0.81666895,2405.5,2405.4,4.1572123]
[1750458665895,0.43733438,2405.5,2405.4,4.1572123]
[1750458666195,0.81675437,2405.5,2405.4,4.1572123]
[1750458666401,2.54475437,2405.5,2405.4,4.1572123]
[1750458666717,10.038,2405.9,2405.8,4.15662149]
[1750458666914,29.0354332,2405.9,2405.8,4.15662149]
[1750458667081,29.4148664,2405.9,2405.8,4.15662149]
[1750458667281,29.41486523,2405.9,2405.8,4.15662149]
[1750458667599,10.73883668,2405.9,2405.8,4.15662149]
[1750458667771,19.35484808,2405.9,2405.8,4.15662149]
[1750458667968,29.35484808,2405.9,2405.8,4.15662149]
[1750458668216,28.654,2405.9,2405.8,4.15662149]
[1750458668415,29.41283455,2405.9,2405.8,4.15662149]
[1750458668588,29.41280655,2405.9,2405.8,4.15662149]
[1750458669120,29.35377005,2405.9,2405.8,4.15662149]
[1750458670023,10.73893977,2405.9,2405.8,4.15662149]
[1750458670175,18.595,2405.9,2405.8,4.98796307]
[1750458670375,21.764,2405.9,2405.8,4.98796307]
[1750458670613,28.595,2405.9,2405.8,4.98796307]
[1750458670823,18.595,2405.9,2405.8,4.98796307]
[1750458670980,16.811,2405.9,2405.8,5.04876307]
[1750458673322,6.831,2405.9,2405.8,5.04876307]
[1750458673887,6.831,2405.9,2405.8,4.98796307]
[1750458674512,6.831,2405.9,2405.8,5.04876307]
[1750458674710,13.03389726,2406.2,2406.1,4.15610323]
[1750458674896,22.35031328,2406.2,2406.1,4.15610323]
[1750458675081,21.97060514,2406.2,2406.1,4.15610323]
[1750458675415,12.97589726,2406.2,2406.1,4.15610323]
[1750458675619,21.59089726,2406.2,2406.1,4.15610323]
[1750458676208,21.64889726,2406.2,2406.1,4.15610323]
[1750458676409,22.02867411,2406.2,2406.1,4.15610323]
[1750458676934,13.35567411,2406.2,2406.1,4.15610323]
[1750458677233,2.97589726,2406.2,2406.1,5.8794368]
[1750458677431,2.97589726,2406.2,2406.1,5.92099277]
[1750458677747,2.97589726,2406.2,2406.1,12.75099029]
[1750458677908,1.784,2407.0,2406.9,4.15472184]
[1750458678312,1.784,2407.0,2406.9,4.21552184]
[1750458678516,0.751,2407.5,2407.4,4.15385893]
[1750458678718,13.35217569,2407.5,2407.4,4.15385893]
[1750458679046,17.78165218,2407.5,2407.4,4.15385893]
[1750458679214,20.5581174,2407.5,2407.4,4.15385893]
[1750458679410,30.55714891,2407.5,2407.4,4.15385893]
[1750458679773,10.55,2407.4,2406.7,4.1550671]
[1750458679911,7.59847649,2406.9,2406.8,4.15489446]
[1750458680110,16.21247649,2406.9,2406.8,4.15489446]
[1750458680317,18.14847649,2407.1,2407.0,4.15454923]
[1750458680531,18.615,2407.1,2407.0,4.15454923]
[1750458680850,10.8208,2407.7,2407.6,4.15351387]
[1750458681052,20.19802596,2407.7,2407.6,4.15351387]
[1750458681356,30.19674579,2407.7,2407.6,4.15351387]
[1750458681570,30.196719,2407.7,2407.6,4.15351387]
[1750458681867,29.8177595,2407.7,2407.6,4.15351387]
[1750458682023,30.74671717,2407.7,2407.6,4.15351387]
[1750458682225,30.74670836,2407.7,2407.6,4.15351387]
[1750458682622,30.36774886,2407.7,2407.6,4.15351387]
[1750458682938,22.12849855,2407.7,2407.6,4.15351387]
[1750458683132,23.91249855,2407.7,2407.6,4.15351387]
[1750458683327,23.91250131,2407.7,2407.6,4.15351387]
[1750458683529,23.1548,2407.7,2407.6,4.15351387]
[1750458683857,29.3798,2407.7,2407.6,4.15351387]
[1750458684153,28.598,2407.7,2407.6,4.15351387]
[1750458684355,28.656,2407.7,2407.6,4.15351387]
[1750458685582,29.206,2407.7,2407.3,4.1538954]
[1750458685897,11.3566,2407.5,2407.4,4.15385893]
[1750458686063,18.2426,2407.5,2407.4,4.15385893]
[1750458686968,17.436,2407.5,2407.4,4.15385893]
[1750458688770,17.378,2407.5,2407.4,4.15385893]
[1750458689110,16.828,2407.5,2407.4,4.15385893]
[1750458690195,10.7896,2407.7,2407.6,4.15351387]
[1750458690369,30.21700605,2407.7,2407.6,4.15351387]
[1750458690569,29.83830294,2407.7,2407.6,4.15351387]
[1750458690793,30.21700466,2407.7,2407.6,4.15351387]
[1750458691008,34.35005116,2407.7,2407.6,4.15351387]
[1750458691208,33.48550036,2407.7,2407.6,4.15351387]
[1750458691530,29.35245198,2407.7,2407.6,4.15351387]
[1750458691712,29.41045198,2407.7,2407.6,4.15351387]
[1750458691913,29.41045052,2407.7,2407.6,4.15351387]
[1750458692287,29.41044492,2407.7,2407.6,4.15351387]
[1750458692596,29.0317226,2407.7,2407.6,4.15351387]
[1750458692801,20.74075622,2407.7,2407.6,4.15351387]
[1750458693006,6.827,2407.9,2407.8,4.15316886]
[1750458693193,7.58519903,2407.9,2407.8,4.15316886]
[1750458693382,17.58521571,2407.9,2407.8,4.15316886]
[1750458693582,17.20610336,2407.9,2407.8,4.15316886]
[1750458693817,16.827,2407.9,2407.8,4.15316886]
[1750458694014,17.2061064,2407.9,2407.8,4.15316886]
[1750458694418,17.20610176,2407.9,2407.8,4.15316886]
[1750458694721,17.20610176,2407.9,2407.8,5.48194725]
[1750458695088,17.58505144,2407.9,2407.8,5.48194725]
[1750458695286,17.58491228,2407.9,2407.8,4.15316886]
[1750458695486,17.58491555,2407.9,2407.8,4.15316886]
[1750458695718,10.37895748,2407.9,2407.8,4.15316886]
[1750458696021,17.58465718,2407.9,2407.8,4.15316886]
[1750458696223,17.58540102,2407.9,2407.8,4.15316886]
[1750458696522,17.58539728,2407.9,2407.8,5.48194725]
[1750458696723,17.58539536,2407.9,2407.8,5.48194725]
[1750458697026,10.75939978,2407.9,2407.8,5.48194725]
[1750458697205,17.58539978,2407.9,2407.8,5.48194725]
[1750458697389,17.58540245,2407.9,2407.8,5.53884725]
[1750458697993,17.20569988,2407.9,2407.8,5.53884725]
[1750458698194,17.58539937,2407.9,2407.8,5.48194725]
[1750458698498,17.58539973,2407.9,2407.8,5.53884725]
[1750458699019,17.58534123,2407.9,2407.8,5.53884725]
[1750458699410,17.20569988,2407.9,2407.8,5.53884725]
[1750458699588,17.20564086,2407.9,2407.8,5.53884725]
[1750458699789,17.58528172,2407.9,2407.8,5.53884725]
[1750458700003,17.58608642,2407.9,2407.8,5.53884725]
[1750458700201,16.826,2407.9,2407.8,5.53884725]
[1750458700504,17.58688696,2407.9,2407.8,5.53884725]
[1750458701092,0.76088696,2407.9,2407.8,6.38777551]
[1750458701317,6.826,2408.3,2408.2,4.15247902]
[1750458701630,6.826,2408.3,2408.2,4.98298774]
[1750458701631,7.58689179,2408.3,2408.2,4.98298774]
[1750458701814,17.58689179,2408.3,2408.2,4.98298774]
[1750458702012,7.58689258,2408.3,2408.2,4.98298774]
[1750458702214,7.58689258,2408.3,2408.2,4.15247902]
[1750458702395,7.64908291,2408.3,2408.2,4.15247902]
[1750458702591,7.64907979,2408.3,2408.2,4.15247902]
[1750458702991,7.26863302,2408.3,2408.2,4.15247902]
[1750458703221,17.64861556,2408.3,2408.2,4.15247902]
[1750458703731,10.0,2408.2,2407.8,2.13617839]
[1750458703889,7.59385427,2407.9,2407.5,4.96102428]
[1750458704089,9.43905427,2407.9,2407.8,4.15303312]
[1750458704313,16.8741088,2407.9,2407.8,4.15303312]
[1750458704516,17.25539829,2407.9,2407.8,4.15303312]
[1750458705131,17.25534212,2407.9,2407.8,4.15303312]
[1750458705334,17.25530328,2407.9,2407.8,4.15303312]
[1750458705632,17.25527859,2407.9,2407.8,4.15303312]
[1750458705835,17.02649232,2407.9,2407.8,4.15303312]
[1750458706044,10.0622,2407.8,2407.6,4.15344237]
[1750458706332,10.6122,2407.8,2407.7,3.88316816]
[1750458706539,18.43015499,2407.8,2407.7,3.88316816]
[1750458706718,18.43014953,2407.8,2407.7,3.88316816]
[1750458707095,18.43014582,2407.8,2407.7,3.88316816]
[1750458707530,26.02418811,2407.8,2407.7,3.88316816]
[1750458707719,26.02409915,2407.8,2407.7,3.88316816]
[1750458707908,26.02423482,2407.8,2407.7,3.88316816]
[1750458708106,26.02432818,2407.8,2407.7,3.88316816]
[1750458708333,29.06588878,2407.8,2407.7,3.88316816]
[1750458708628,29.06588094,2407.8,2407.7,3.88316816]
[1750458708938,29.06606013,2407.8,2407.7,3.88316816]
[1750458709341,29.06606013,2407.8,2407.7,3.34281429]
[1750458709652,29.06604297,2407.8,2407.7,3.34281429]
[1750458709837,29.0660226,2407.8,2407.7,3.34281429]
[1750458709996,29.0038226,2407.8,2407.5,4.15367074]
[1750458710330,7.59385427,2407.6,2407.4,4.15379475]
[1750458710507,18.0398048,2407.5,2407.4,4.15385893]
[1750458710826,18.26858361,2407.5,2407.4,4.15385893]
[1750458711039,18.64987789,2407.5,2407.4,4.15385893]
[1750458711204,18.64987789,2407.5,2407.3,4.15398877]
[1750458711205,0.0622,2407.4,2407.3,4.15388804]
[1750458711403,10.4304202,2407.4,2407.3,4.15388804]
[1750458711615,10.20165335,2407.4,2407.3,4.15388804]
[1750458711815,0.0622,2407.3,2407.2,4.15413983]
[1750458712041,7.8783578,2407.3,2407.2,4.15413983]
[1750458712246,7.87829809,2407.3,2407.2,4.15413983]
[1750458712744,7.87828574,2407.3,2407.2,4.15413983]
[1750458712948,21.34929787,2407.3,2407.1,4.15421609]
[1750458713114,8.64695889,2407.2,2407.1,4.15421609]
[1750458713312,8.6466905,2407.2,2407.1,4.15421609]
[1750458713525,8.26569874,2407.2,2407.1,4.15421609]
[1750458713857,8.64646,2407.2,2407.1,4.15421609]
[1750458714157,8.64645816,2407.2,2407.1,4.15421609]
[1750458714456,17.25455769,2407.2,2407.1,4.15421609]
[1750458714643,17.25486033,2407.2,2407.1,4.15421609]
[1750458714845,17.25508745,2407.2,2407.1,4.15421609]
[1750458715226,9.66123318,2407.2,2407.1,4.15421609]
[1750458715562,9.66173559,2407.2,2407.1,4.15421609]
[1750458715766,9.59953559,2407.2,2407.1,4.15421609]
[1750458716073,9.21817574,2407.2,2407.1,4.15421609]
[1750458716268,9.59948659,2407.2,2407.1,4.15421609]
[1750458716635,8.8368159,2407.2,2407.1,4.15421609]
[1750458716963,9.5989963,2407.2,2407.1,4.15421609]
[1750458717535,9.59864564,2407.2,2407.1,4.15421609]
[1750458717753,8.608,2407.2,2407.1,4.15421609]
[1750458717952,0.99018089,2407.2,2407.1,5.06401823]
[1750458718154,0.38084288,2407.2,2407.1,5.16245745]
[1750458718356,0.38084288,2407.2,2407.1,5.95175745]
[1750458718539,30.0,2408.0,2407.7,4.94264136]
[1750458718738,7.81660218,2407.9,2407.8,4.15316886]
[1750458718940,7.81660218,2407.9,2407.7,4.15326292]
[1750458718941,10.821,2407.8,2407.7,4.15326292]
[1750458719248,11.87378408,2407.8,2407.7,4.15326292]
[1750458719451,1.87378518,2407.8,2407.7,4.15326292]
[1750458719624,11.05278111,2407.8,2407.7,4.15326292]
[1750458719829,10.82415587,2407.8,2407.7,4.15326292]
[1750458720049,11.05274495,2407.8,2407.7,4.15326292]
[1750458720256,11.05274199,2407.8,2407.7,4.15326292]
[1750458720570,13.97784824,2407.8,2407.7,4.15326292]
[1750458720869,13.97784824,2407.8,2407.4,4.1537754]
[1750458720870,0.0622,2407.5,2407.4,4.1537754]
[1750458721164,19.6637533,2407.5,2407.4,4.1537754]
[1750458722365,19.66375313,2407.5,2407.4,4.1537754]
[1750458722731,19.66357116,2407.5,2407.4,4.1537754]
[1750458722969,19.37282621,2407.5,2407.4,4.1537754]
[1750458723149,19.60137262,2407.5,2407.4,4.1537754]
[1750458723462,19.37302672,2407.5,2407.4,4.1537754]
[1750458723662,19.60163589,2407.5,2407.4,4.1537754]
[1750458723862,19.60166389,2407.5,2407.4,4.1537754]
[1750458724069,19.65997281,2407.5,2407.3,4.15392862]
[1750458724236,18.611,2407.5,2407.4,4.15385893]
[1750458724433,19.22068564,2407.5,2407.4,4.15385893]
[1750458724648,19.60173472,2407.5,2407.4,4.15385893]
[1750458724866,19.60177587,2407.5,2407.4,4.15385893]
[1750458725332,19.6020207,2407.5,2406.9,0.7893]
[1750458725532,0.60991446,2407.4,2407.1,4.15434002]
[1750458725733,10.0583,2407.2,2407.1,4.15437663]
[1750458725966,10.38120228,2407.2,2407.1,4.15437663]
[1750458726169,10.38119424,2407.2,2407.1,4.15437663]
[1750458726367,1.24956101,2407.5,2407.4,4.15385893]
[1750458726575,10.90753733,2407.5,2407.4,4.15385893]
[1750458726962,10.90760126,2407.5,2407.4,4.15385893]
[1750458727162,10.90761032,2407.5,2407.4,4.15385893]
[1750458727364,10.90762669,2407.5,2407.4,4.15385893]
[1750458727686,10.90762635,2407.5,2407.4,4.15385893]
[1750458728176,10.90762619,2407.5,2407.4,4.15385893]
[1750458728376,10.90762246,2407.5,2407.4,4.15385893]
[1750458728680,10.90772032,2407.5,2407.4,4.15385893]
[1750458729050,10.52672318,2407.5,2407.4,4.15385893]
[1750458729251,10.90788704,2407.5,2407.4,4.15385893]
[1750458729697,10.90790048,2407.5,2407.4,4.15385893]
[1750458729891,10.90791507,2407.5,2407.4,4.15385893]
[1750458730053,10.62090609,2407.5,2407.4,4.15385893]
[1750458730253,10.84961125,2407.5,2407.4,4.15385893]
[1750458730461,10.6209046,2407.5,2407.4,4.15385893]
[1750458730791,10.84985093,2407.5,2407.4,4.15385893]
[1750458731003,20.90815731,2407.5,2407.4,4.15385893]
[1750458731208,20.90815954,2407.5,2407.4,4.15385893]
[1750458732109,12.16429914,2407.5,2407.4,4.15385893]
[1750458732311,19.3715578,2407.5,2407.4,4.15385893]
[1750458732509,18.99027273,2407.5,2407.4,4.15385893]
[1750458732690,18.99025834,2407.5,2407.4,4.15385893]
[1750458732890,19.60281086,2407.5,2407.4,4.15385893]
[1750458733103,19.60281677,2407.5,2407.4,4.15385893]
[1750458733595,19.60281106,2407.5,2407.4,4.15385893]
[1750458733798,19.60281016,2407.5,2407.4,4.15385893]
[1750458734310,19.60281875,2407.5,2407.4,4.15385893]
[1750458734516,19.60279212,2407.5,2407.4,4.15385893]
[1750458734914,19.60277944,2407.5,2407.4,4.15385893]
[1750458735122,19.60278055,2407.5,2407.4,4.15385893]
[1750458735302,19.60278232,2407.5,2407.4,4.15385893]
[1750458735506,10.0583,2407.4,2407.3,4.15403148]
[1750458735733,10.99378232,2407.4,2407.3,4.15403148]
[1750458735930,10.99377298,2407.4,2407.3,4.15403148]
[1750458736157,11.05204288,2407.4,2407.3,4.15403148]
[1750458736447,10.61152112,2407.4,2407.3,4.15403148]
[1750458736747,10.99373957,2407.4,2407.3,4.15403148]
[1750458736951,10.99369508,2407.4,2407.3,4.15403148]
[1750458737242,10.99379195,2407.4,2407.3,4.15403148]
[1750458737561,13.21428545,2407.4,2407.3,4.15403148]
[1750458737727,13.21438022,2407.4,2407.3,4.15403148]
[1750458737924,13.15607678,2407.4,2407.3,4.15403148]
[1750458738233,13.15615223,2407.4,2407.3,4.15403148]
[1750458738557,13.15615142,2407.4,2407.3,4.15403148]
[1750458738861,12.77380798,2407.4,2407.3,4.15403148]
[1750458739165,12.77385785,2407.4,2407.3,4.15403148]
[1750458739463,10.99402648,2407.4,2407.3,4.21593148]
[1750458739648,10.61173178,2407.4,2407.3,4.21593148]
[1750458739961,10.61173479,2407.4,2407.3,4.21593148]
[1750458740171,10.99404225,2407.4,2407.3,4.21593148]
[1750458740469,10.99402079,2407.4,2407.3,4.15403148]
[1750458740626,10.76464222,2407.4,2407.3,4.15403148]
[1750458740826,10.99405847,2407.4,2407.3,4.15403148]
[1750458741463,10.99407857,2407.4,2407.3,4.15403148]
[1750458741764,11.05237857,2407.4,2407.3,4.15403148]
[1750458741966,10.99407857,2407.4,2407.3,4.15403148]
[1750458742162,10.99407806,2407.4,2407.3,4.15403148]
[1750458742363,10.22939096,2407.4,2407.3,4.15403148]
[1750458742663,10.99407671,2407.4,2407.3,4.15403148]
[1750458742863,10.99407535,2407.4,2407.3,4.15403148]
[1750458743062,10.99407579,2407.4,2407.3,4.15403148]
[1750458743263,10.9940738,2407.4,2407.3,4.15403148]
[1750458743685,11.0523738,2407.4,2407.3,4.15403148]
[1750458743890,11.05237397,2407.4,2407.3,4.15403148]
[1750458744167,10.99418944,2407.4,2407.3,4.15403148]
[1750458744468,10.99426547,2407.4,2407.3,4.15403148]
[1750458744966,10.99426545,2407.4,2407.3,4.15403148]
[1750458745135,10.99426518,2407.4,2407.3,4.15403148]
[1750458745335,11.05256512,2407.4,2407.3,4.15403148]
[1750458745535,11.05238448,2407.4,2407.3,4.15403148]
[1750458745736,10.99414436,2407.4,2407.3,4.15403148]
[1750458746080,10.99423997,2407.4,2407.3,4.15403148]
[1750458746635,10.38231853,2407.4,2407.3,4.15403148]
[1750458746837,10.99397276,2407.4,2407.3,4.15403148]
[1750458747152,10.99397166,2407.4,2407.3,4.15403148]
[1750458747459,10.99396913,2407.4,2407.3,4.15403148]
[1750458747661,13.77826003,2407.4,2407.3,4.15403148]
[1750458747859,13.77828456,2407.4,2407.3,4.15403148]
[1750458748056,13.71998456,2407.4,2407.2,4.15420012]
[1750458748262,12.7842909,2407.4,2407.3,4.15403148]
[1750458748567,25.47615317,2407.4,2407.3,4.15403148]
[1750458748772,25.41785357,2407.4,2407.2,4.15409546]
[1750458748974,1.37308391,2407.3,2406.4,4.15544299]
[1750458749174,2.5414,2407.5,2406.7,4.1549828]
[1750458749175,17.5986399,2406.8,2406.7,4.1549828]
[1750458749374,10.99421396,2406.8,2406.7,4.2168828]
[1750458749578,0.38235191,2406.8,2406.7,5.96090377]
[1750458749879,7.6569399,2407.5,2406.7,5.96090377]
[1750458749880,10.55,2407.6,2407.5,4.15368639]
[1750458750041,20.21951257,2407.6,2407.5,3.88348329]
[1750458750241,20.21951256,2407.6,2407.5,3.88348329]
[1750458750574,0.55,2407.5,2407.2,4.15413339]
[1750458750775,10.0,2407.3,2407.2,4.15413339]
[1750458750939,10.99415908,2407.3,2407.2,4.15413339]
[1750458751140,0.99406814,2407.3,2407.2,4.96643339]
[1750458751345,10.9940939,2407.3,2407.2,4.96643339]
[1750458751539,10.38232249,2407.3,2407.2,4.96643339]
[1750458751742,9.975,2408.1,2407.2,5.87851414]
[1750458751946,9.22976664,2407.9,2407.8,4.15316886]
[1750458752156,0.0605,2407.8,2407.4,0.7504]
[1750458752378,17.6591399,2407.6,2407.4,4.15375945]
[1750458752579,10.99415825,2407.5,2407.4,4.15375945]
[1750458752745,19.61715825,2407.5,2407.4,4.15375945]
[1750458752945,19.61715526,2407.5,2407.4,4.15375945]
[1750458753147,19.61714837,2407.5,2407.4,4.15375945]
[1750458753448,19.61708703,2407.5,2407.4,4.15375945]
[1750458753643,19.61709023,2407.5,2407.4,4.15375945]
[1750458753844,10.76468996,2407.5,2407.4,4.15375945]
[1750458754083,17.83409274,2407.5,2407.4,4.15375945]
[1750458754581,17.83408873,2407.5,2407.4,4.15375945]
[1750458754969,10.38222729,2407.5,2407.4,5.87245078]
[1750458755350,10.38222056,2407.5,2407.4,5.87245078]
[1750458755546,10.38224112,2407.5,2407.4,4.90415945]
[1750458755957,17.83978479,2407.5,2407.4,4.15375945]
[1750458756157,17.22823496,2407.5,2407.4,4.15375945]
[1750458756353,17.61045221,2407.5,2407.4,4.15375945]
[1750458756562,17.83979034,2407.5,2407.4,4.15375945]
[1750458756877,17.45754375,2407.5,2407.4,4.15375945]
[1750458757087,17.83975487,2407.5,2407.4,4.15375945]
[1750458757412,17.67092187,2407.5,2407.4,4.15375945]
[1750458757591,20.42720301,2407.5,2407.4,4.15375945]
[1750458757747,20.42719908,2407.5,2407.4,4.15375945]
[1750458757951,10.99374281,2407.5,2407.4,4.15375945]
[1750458758194,19.62173652,2407.5,2407.4,4.15375945]
[1750458758350,10.99373652,2407.5,2407.4,4.90415945]
[1750458758555,10.99370814,2407.5,2407.4,4.90415945]
[1750458758761,10.99364685,2407.5,2407.4,4.90415945]
[1750458759099,10.99359026,2407.5,2407.4,4.90415945]
[1750458759281,0.38213774,2407.5,2407.4,4.96095945]
[1750458759484,6.845,2407.6,2407.4,4.96095945]
[1750458759485,6.845,2407.6,2407.5,4.15368639]
[1750458759796,11.8435,2407.9,2407.8,4.15316886]
[1750458760092,19.68310849,2407.9,2407.8,4.15316886]
[1750458760391,19.68310921,2407.9,2407.8,4.15316886]
[1750458760561,19.30095077,2407.9,2407.8,4.15316886]
[1750458760961,19.68317227,2407.9,2407.8,4.15316886]
[1750458761177,23.48385349,2407.9,2407.8,4.15316886]
[1750458761376,23.48422991,2407.9,2407.8,4.15316886]
[1750458761919,23.48423426,2407.9,2407.8,4.15316886]
[1750458762122,19.62305304,2407.9,2407.8,4.15316886]
[1750458762409,19.6230488,2407.9,2407.8,4.15316886]
[1750458762588,19.62305406,2407.9,2407.8,4.15316886]
[1750458762771,19.62304986,2407.9,2407.8,4.15316886]
[1750458762971,19.62794259,2407.9,2407.8,4.97476886]
[1750458763171,12.40365671,2407.9,2407.8,4.97476886]
[1750458763372,19.62887569,2407.9,2407.8,4.97476886]
[1750458763605,23.34902004,2407.9,2407.8,4.15316886]
[1750458763805,23.34901749,2407.9,2407.8,4.15316886]
[1750458764005,23.34896778,2407.9,2407.8,4.15316886]
[1750458764191,19.39938625,2407.9,2407.8,4.15316886]
[1750458764403,19.62863407,2407.9,2407.8,4.15316886]
[1750458764722,19.57863409,2407.9,2407.8,4.15316886]
[1750458764879,19.57863449,2407.9,2407.8,4.15316886]
[1750458765080,19.57863389,2407.9,2407.8,4.15316886]
[1750458765280,19.57863615,2407.9,2407.8,4.15316886]
[1750458765480,19.57863601,2407.9,2407.8,4.15316886]
[1750458765675,10.71437192,2407.9,2407.8,4.15316886]
[1750458765930,10.94373034,2407.9,2407.8,4.20996886]
[1750458766123,17.17616775,2407.9,2407.8,5.91147551]
[1750458766349,1.792,2408.0,2407.9,4.15299638]
[1750458766496,9.01928443,2408.0,2407.9,4.20979638]
[1750458766693,19.0192842,2408.0,2407.9,4.15299638]
[1750458767194,19.01875988,2408.0,2407.9,4.15299638]
[1750458767495,19.01875553,2408.0,2407.9,5.63157333]
[1750458767716,19.01875553,2408.0,2407.9,5.57477333]
[1750458767927,12.17375553,2408.0,2407.9,5.57477333]
[1750458768223,11.792,2408.0,2407.9,5.63157333]
[1750458768424,12.17370572,2408.0,2407.9,5.63157333]
[1750458768629,12.17370572,2408.0,2407.9,5.57477333]
[1750458769329,12.17370972,2408.0,2407.9,5.57477333]
[1750458769529,12.17349815,2408.0,2407.9,5.57477333]
[1750458770022,12.17349815,2408.0,2407.9,4.15299638]
[1750458770327,12.1734842,2408.0,2407.9,4.15299638]
[1750458770630,12.17348525,2408.0,2407.9,4.15299638]
[1750458771099,11.792,2408.0,2407.9,4.15299638]
[1750458771498,12.1734273,2408.0,2407.9,4.15299638]
[1750458772123,19.3906399,2408.0,2407.9,4.15299638]
[1750458772310,19.83256194,2408.0,2407.9,4.15299638]
[1750458772696,19.83256242,2408.0,2407.9,4.15299638]
[1750458773122,19.83256757,2408.0,2407.9,4.15299638]
[1750458773425,10.0605,2407.9,2407.8,4.15316886]
[1750458773655,17.28690515,2407.9,2407.8,4.15316886]
[1750458773796,16.9055,2407.9,2407.8,4.15316886]
[1750458774129,17.28690097,2407.9,2407.8,4.15316886]
[1750458774328,17.28690453,2407.9,2407.8,4.15316886]
[1750458774529,16.9055,2407.9,2407.8,4.15316886]
[1750458774729,17.28690095,2407.9,2407.8,4.15316886]
[1750458775898,17.286935,2407.9,2407.8,4.15316886]
[1750458776543,17.66836836,2407.9,2407.8,4.15316886]
[1750458777248,17.89721992,2407.9,2407.8,4.15316886]
[1750458777414,17.89722358,2407.9,2407.8,4.15316886]
[1750458777617,10.0,2407.8,2407.7,4.15323893]
[1750458777858,18.04064888,2407.8,2407.7,4.15323893]
[1750458779117,18.0407952,2407.8,2407.7,4.15323893]
[1750458779750,17.9802952,2407.8,2407.7,4.15323893]
[1750458780454,17.98029381,2407.8,2407.7,4.15323893]
[1750458780833,18.65205629,2407.8,2407.7,4.15323893]
[1750458781618,10.38203915,2407.8,2407.7,4.15323893]
[1750458781856,10.38203799,2407.8,2407.7,4.15323893]
[1750458782038,10.76407241,2407.8,2407.7,4.15323893]
[1750458782421,10.9933777,2407.8,2407.7,4.15323893]
[1750458782622,10.99337973,2407.8,2407.7,4.15323893]
[1750458783164,10.99337981,2407.8,2407.7,4.15323893]
[1750458783663,1.05572884,2407.8,2407.7,4.15323893]
[1750458784051,1.05572592,2407.8,2407.7,4.15323893]
[1750458784250,1.05572041,2407.8,2407.7,4.15323893]
[1750458784451,0.99342161,2407.8,2407.7,4.15323893]
[1750458784881,9.4529399,2408.0,2407.8,4.15316886]
[1750458785053,10.0029399,2408.0,2407.9,4.15299638]
[1750458785367,17.8255142,2408.0,2407.9,4.15299638]
[1750458785676,17.82549938,2408.0,2407.9,4.15299638]
[1750458785960,19.6910548,2408.0,2407.9,4.15299638]
[1750458786165,0.0623,2407.9,2407.8,4.15307927]
[1750458786371,1.05594363,2407.9,2407.8,4.15307927]
[1750458786534,1.05594341,2407.9,2407.8,4.15307927]
[1750458786734,1.05599342,2407.9,2407.8,4.15307927]
[1750458786930,3.02509873,2407.9,2407.8,4.15307927]
[1750458787238,2.6429019,2407.9,2407.8,4.15307927]
[1750458787438,0.99366214,2407.9,2407.8,4.15307927]
[1750458787769,26.7696399,2408.0,2407.9,4.15299638]
[1750458788071,27.76330129,2408.0,2407.9,4.15299638]
[1750458788369,27.82560339,2408.0,2407.9,4.15299638]
[1750458788569,27.82560141,2408.0,2407.9,4.15299638]
[1750458788787,30.69116155,2408.0,2407.9,4.15299638]
[1750458789491,30.07979136,2408.0,2407.9,4.15299638]
[1750458789665,30.69145911,2408.0,2407.9,4.15299638]
[1750458789864,27.76359897,2408.0,2407.9,4.15299638]
[1750458790267,27.76363554,2408.0,2407.9,4.15299638]
[1750458790666,27.76369059,2408.0,2407.9,4.15299638]
[1750458791283,27.8259896,2408.0,2407.9,4.15299638]
[1750458791481,27.82599065,2408.0,2407.9,4.15299638]
[1750458791687,30.60859274,2408.0,2407.9,4.15299638]
[1750458791861,30.60859284,2408.0,2407.9,4.15299638]
[1750458792957,30.54620906,2408.0,2407.9,4.15299638]
[1750458793158,30.54606956,2408.0,2407.9,4.15299638]
[1750458793597,30.5459859,2408.0,2407.9,4.15299638]
[1750458793762,30.54597388,2408.0,2407.9,4.15299638]
[1750458794295,30.54597219,2408.0,2407.9,4.15299638]
[1750458794501,30.54596809,2408.0,2407.9,4.15299638]
[1750458794680,30.16377036,2408.0,2407.9,4.15299638]
[1750458794895,30.54599695,2408.0,2407.9,4.15299638]
[1750458795261,30.54593914,2408.0,2407.9,4.15299638]
[1750458795688,30.54585773,2408.0,2407.9,4.15299638]
[1750458795993,20.16456412,2408.0,2407.9,4.15299638]
[1750458796607,20.16453483,2408.0,2407.9,4.15299638]
[1750458796808,19.78240605,2408.0,2407.9,4.15299638]
[1750458797006,2.78579184,2408.0,2407.9,4.15299638]
[1750458797196,9.61180217,2408.0,2407.9,4.97639638]
[1750458797394,9.38247647,2408.0,2407.9,4.97639638]
[1750458797571,9.61185127,2408.0,2407.9,4.97639638]
[1750458797766,19.61207378,2408.0,2407.9,4.97639638]
[1750458797972,19.61218503,2408.0,2407.9,4.97639638]
[1750458798173,19.61217988,2408.0,2407.9,4.97639638]
[1750458798911,12.78617988,2408.0,2407.9,4.97639638]
[1750458799084,19.61217988,2408.0,2407.9,4.97639638]
[1750458799285,19.22995213,2408.0,2407.9,4.97639638]
[1750458799481,19.38304902,2408.0,2407.9,4.97639638]
[1750458799713,19.61274353,2408.0,2407.9,4.97639638]
[1750458800303,19.61254704,2408.0,2407.9,4.97639638]
[1750458800491,19.6125302,2408.0,2407.9,4.97639638]
[1750458800694,19.61252792,2408.0,2407.9,4.97639638]
[1750458800996,19.61252581,2408.0,2407.9,4.97639638]
[1750458801530,10.61200568,2408.0,2407.9,4.97639638]
[1750458801693,17.58998434,2408.0,2407.9,5.88935143]
[1750458801892,17.58997112,2408.0,2407.9,5.88935143]
[1750458802434,17.5899474,2408.0,2407.9,5.88935143]
[1750458802731,7.58994335,2408.0,2407.9,4.91739638]
[1750458802931,7.8194096,2408.0,2407.9,4.15299638]
[1750458803146,7.81944134,2408.0,2407.9,4.15299638]
[1750458803336,7.81952651,2408.0,2407.9,4.15299638]
[1750458803522,7.81968476,2408.0,2407.9,4.15299638]
[1750458803916,7.81969042,2408.0,2407.9,4.15299638]
[1750458804229,7.81974593,2408.0,2407.9,4.15299638]
[1750458804536,7.81978889,2408.0,2407.9,4.15299638]
[1750458804736,7.81978896,2408.0,2407.9,4.15299638]
[1750458804938,7.81978944,2408.0,2407.9,4.15299638]
[1750458805236,7.81979136,2408.0,2407.9,4.15299638]
[1750458805434,7.59021762,2408.0,2407.9,4.15299638]
[1750458805737,7.81974075,2408.0,2407.9,4.15299638]
[1750458806246,7.81964094,2408.0,2407.9,4.15299638]
[1750458806550,25.480583,2408.0,2407.9,4.15299638]
[1750458806753,25.48057429,2408.0,2407.9,4.15299638]
[1750458807467,17.81964799,2408.0,2407.9,5.03679638]
[1750458807647,17.8196363,2408.0,2407.9,5.03679638]
[1750458807950,17.4370177,2408.0,2407.9,4.97779638]